bitfinex/quotes_SOLUSD_20250106
["timestamp","ask_amount","ask_price","bid_price","bid_amount"]
[1736152979418,9.19761733,214.17,214.1,6.5404]
[1736152980090,9.19761733,214.16,214.1,57.0404]
[1736152980392,9.19761733,214.15,214.1,57.0404]
[1736152980592,9.19761733,214.13,214.1,50.5]
[1736152980932,9.19761733,214.14,214.1,50.5]
[1736152981104,9.19761733,214.13,214.1,50.5]
[1736152981302,2.2,214.18,214.05,58.6566]
[1736152981303,9.19761733,214.11,214.05,58.6566]
[1736152981603,9.19761733,214.12,214.05,8.1566]
[1736152981807,9.19761733,214.12,214.05,58.6566]
[1736152982012,9.19761733,214.11,214.05,58.6566]
[1736152982208,9.19761733,214.1,214.05,58.6566]
[1736152982405,9.19761733,214.09,214.05,8.1566]
[1736152982917,11.39761733,214.1,214.05,8.1566]
[1736152983235,9.19761733,214.09,214.02,9.19761733]
[1736152984195,9.19761733,214.09,214.02,59.69761733]
[1736152984828,9.19761733,214.08,214.02,50.5]
[1736152985128,2.2,214.1,214.02,50.5]
[1736152985129,9.19761733,214.07,214.02,50.5]
[1736152985736,9.19761733,214.05,214.0,7.8139]
[1736152986738,9.19761733,214.04,214.0,1.5473]
[1736152986892,9.19761733,214.04,213.96,50.5]
[1736152986893,9.19761733,214.01,213.96,1.5764]
[1736152987097,2.2,214.03,213.96,1.5764]
[1736152987098,9.19761733,214.0,213.96,1.5764]
[1736152987419,9.19761733,214.02,213.96,1.5764]
[1736152987597,2.2,214.03,213.96,1.5764]
[1736152987598,9.19761733,214.01,213.96,1.5764]
[1736152990622,9.19761733,214.0,213.96,1.5764]
[1736152990947,2.2,214.03,213.96,1.5764]
[1736152991138,9.19761733,214.0,213.96,1.5764]
[1736152992238,9.19761733,213.99,213.95,6.5747]
[1736152993971,9.19761733,214.0,213.95,6.5747]
[1736152994820,13.8806,214.03,213.95,6.5747]
[1736152995022,9.19761733,214.0,213.95,6.5747]
[1736152996122,9.19761733,214.02,213.95,6.5747]
[1736152996326,9.19761733,213.98,213.95,6.5747]
[1736152996951,2.2,214.02,213.91,52.0443]
[1736152996952,9.19761733,213.96,213.91,1.5443]
[1736152997445,9.19761733,213.95,213.9,6.6468]
[1736152997935,9.19761733,213.96,213.9,6.6468]
[1736152998247,9.19761733,213.92,213.88,1.5587]
[1736152998545,9.19761733,213.91,213.85,15.53621733]
[1736152998745,9.19761733,213.91,213.85,6.3386]
[1736152998933,9.19761733,213.92,213.85,6.3386]
[1736152999252,9.19761733,213.89,213.83,1.5885]
[1736152999417,9.19761733,213.88,213.83,1.5885]
[1736152999620,2.2,213.94,213.83,1.5885]
[1736152999621,9.19761733,213.89,213.83,1.5885]
[1736153000047,2.2,213.94,213.84,9.19761733]
[1736153000345,9.19761733,213.9,213.83,1.5885]
[1736153000652,9.19761733,213.9,213.83,61.28611733]
[1736153000946,9.19761733,213.89,213.83,1.5885]
[1736153001249,9.19761733,213.87,213.8,6.4067]
[1736153001456,9.19761733,213.87,213.8,15.60431733]
[1736153001646,9.19761733,213.86,213.8,6.4067]
[1736153001945,9.19761733,213.85,213.77,52.1494]
[1736153002249,9.19761733,213.83,213.77,61.34701733]
[1736153002650,9.19761733,213.83,213.77,52.1494]
[1736153002861,9.19761733,213.84,213.77,61.34701733]
[1736153003058,14.45154775,213.83,213.77,52.1494]
[1736153003266,14.45154775,213.8,213.75,6.4075]
[1736153003560,14.45154775,213.79,213.75,6.4075]
[1736153004230,14.45154775,213.78,213.75,6.4075]
[1736153004431,14.45154775,213.79,213.75,6.4075]
[1736153005061,14.45154775,213.79,213.72,16.11564775]
[1736153005361,14.45154775,213.78,213.72,1.6641]
[1736153006231,14.45154775,213.77,213.72,1.6641]
[1736153006643,14.45154775,213.78,213.72,1.6641]
[1736153006837,14.45154775,213.79,213.72,16.11564775]
[1736153007369,14.45154775,213.78,213.72,1.6641]
[1736153009158,2.2,213.8,213.73,14.45154775]
[1736153009334,14.45154775,213.74,213.66,1.5427]
[1736153009540,14.45154775,213.68,213.64,6.0942]
[1736153009760,14.45154775,213.68,213.61,15.99424775]
[1736153009761,14.45154775,213.67,213.61,1.5427]
[1736153009958,14.45154775,213.66,213.61,1.5427]
[1736153010174,14.45154775,213.64,213.54,0.70216591]
[1736153010462,14.45154775,213.66,213.59,64.95154775]
[1736153010656,2.2,213.66,213.59,14.45154775]
[1736153011230,16.65154775,213.66,213.59,14.45154775]
[1736153011661,16.65154775,213.66,213.54,51.20230366]
[1736153011662,14.45154775,213.68,213.61,14.45154775]
[1736153011860,2.2,213.68,213.62,14.45154775]
[1736153012062,14.45154775,213.66,213.58,15.15361695]
[1736153012264,14.45154775,213.67,213.59,14.45154775]
[1736153013339,14.45154775,213.66,213.59,14.45154775]
[1736153013766,14.45154775,213.66,213.58,14.45154775]
[1736153014149,14.45154775,213.65,213.57,76.65714775]
[1736153014370,2.2,213.68,213.57,14.45154775]
[1736153014371,14.45154775,213.64,213.57,14.45154775]
[1736153014965,14.45154775,213.61,213.53,50.5]
[1736153015171,2.34,213.6,213.54,14.45154775]
[1736153015951,16.79154775,213.6,213.53,64.95154775]
[1736153016473,2.34,213.59,213.53,14.45154775]
[1736153016784,14.45154775,213.62,213.55,14.45154775]
[1736153016944,2.34,213.61,213.56,14.45154775]
[1736153017145,2.34,213.61,213.52,62.91042287]
[1736153017146,2.34,213.61,213.55,14.45154775]
[1736153017667,14.45154775,213.62,213.55,14.45154775]
[1736153018493,14.45154775,213.65,213.58,14.45154775]
[1736153018773,16.79154775,213.66,213.59,14.45154775]
[1736153019353,14.45154775,213.68,213.61,14.45154775]
[1736153019677,16.79154775,213.7,213.62,14.45154775]
[1736153019860,16.79154775,213.73,213.66,14.45154775]
[1736153021163,14.45154775,213.73,213.66,14.45154775]
[1736153021348,14.45154775,213.73,213.66,64.95154775]
[1736153021549,14.45154775,213.74,213.66,64.95154775]
[1736153022059,7.8963,213.82,213.69,64.95154775]
[1736153022060,14.45154775,213.77,213.69,64.95154775]
[1736153022371,14.45154775,213.77,213.7,14.45154775]
[1736153022676,14.45154775,213.8,213.72,64.95154775]
[1736153022978,14.45154775,213.8,213.73,64.95154775]
[1736153023182,14.45154775,213.77,213.73,50.5]
[1736153023487,14.45154775,213.77,213.7,20.71204775]
[1736153023488,14.45154775,213.74,213.7,6.2605]
[1736153023789,14.45154775,213.74,213.69,1.5089]
[1736153023790,14.45154775,213.75,213.69,1.5089]
[1736153023951,14.45154775,213.73,213.66,50.5]
[1736153024159,2.34,213.81,213.65,6.4576]
[1736153024160,14.45154775,213.71,213.65,6.4576]
[1736153025082,14.45154775,213.72,213.65,6.4576]
[1736153025303,2.34,213.73,213.67,14.45154775]
[1736153026003,14.45154775,213.78,213.71,14.45154775]
[1736153026173,14.45154775,213.77,213.7,64.95154775]
[1736153026376,14.45154775,213.77,213.7,50.5]
[1736153026706,14.45154775,213.78,213.71,14.45154775]
[1736153027000,16.79154775,213.8,213.73,64.95154775]
[1736153027176,16.79154775,213.81,213.73,64.95154775]
[1736153027381,16.79154775,213.81,213.74,14.45154775]
[1736153027896,14.45154775,213.83,213.76,14.45154775]
[1736153028108,14.45154775,213.82,213.75,64.95154775]
[1736153028306,14.45154775,213.79,213.75,50.5]
[1736153028470,14.45154775,213.77,213.74,1.5699]
[1736153028671,14.45154775,213.77,213.69,0.70156076]
[1736153028672,14.45154775,213.76,213.69,16.07064775]
[1736153029276,14.45154775,213.77,213.7,64.95154775]
[1736153029478,14.45154775,213.78,213.71,14.45154775]
[1736153029782,14.45154775,213.73,213.65,57.65929809]
[1736153030106,14.45154775,213.73,213.66,14.45154775]
[1736153030286,16.79154775,213.75,213.67,14.45154775]
[1736153030486,14.45154775,213.74,213.67,14.45154775]
[1736153030698,14.45154775,213.73,213.66,14.45154775]
[1736153031002,14.45154775,213.74,213.67,14.45154775]
[1736153032500,14.45154775,213.73,213.66,14.45154775]
[1736153033572,14.45154775,213.74,213.67,14.45154775]
[1736153033795,16.79154775,213.75,213.67,14.45154775]
[1736153034304,2.34,213.75,213.69,14.45154775]
[1736153034477,2.34,213.75,213.71,14.45154775]
[1736153034675,2.34,213.75,213.7,14.45154775]
[1736153034895,2.34,213.75,213.69,64.95154775]
[1736153035200,2.34,213.75,213.7,14.45154775]
[1736153036002,2.34,213.75,213.69,64.95154775]
[1736153036204,2.34,213.75,213.69,50.5]
[1736153036998,2.34,213.75,213.69,64.95154775]
[1736153037995,14.45154775,213.74,213.69,50.5]
[1736153038182,2.34,213.75,213.69,50.5]
[1736153039281,14.45154775,213.78,213.7,64.95154775]
[1736153040413,16.79154775,213.8,213.7,64.95154775]
[1736153041091,16.79154775,213.8,213.72,14.45154775]
[1736153042610,14.45154775,213.76,213.7,50.5]
[1736153042778,14.45154775,213.76,213.68,64.95154775]
[1736153042984,14.45154775,213.77,213.68,64.95154775]
[1736153043176,14.45154775,213.79,213.7,14.45154775]
[1736153044296,14.45154775,213.79,213.72,14.45154775]
[1736153045817,14.45154775,213.79,213.7,11.6986]
[1736153045818,1.5115,213.93,213.78,14.45154775]
[1736153045987,14.45154775,213.87,213.8,14.45154775]
[1736153046193,14.45154775,213.87,213.79,14.45154775]
[1736153046487,16.87154775,213.89,213.82,14.45154775]
[1736153046900,16.87154775,213.89,213.81,14.45154775]
[1736153047213,14.45154775,213.88,213.81,14.45154775]
[1736153048318,16.87154775,213.89,213.82,14.45154775]
[1736153048913,14.45154775,213.91,213.84,14.45154775]
[1736153051023,14.45154775,213.93,213.85,64.95154775]
[1736153052417,14.45154775,213.91,213.85,50.5]
[1736153052802,14.45154775,213.92,213.85,64.95154775]
[1736153053121,14.45154775,213.91,213.85,50.5]
[1736153054313,14.45154775,213.93,213.86,15.15277009]
[1736153054494,16.87154775,213.94,213.87,14.45154775]
[1736153054816,16.87154775,213.94,213.87,64.95154775]
[1736153055515,14.45154775,213.96,213.89,14.45154775]
[1736153055810,14.45154775,213.97,213.9,14.45154775]
[1736153056295,8.0191,214.03,213.91,14.45154775]
[1736153056296,14.45154775,213.98,213.91,14.45154775]
[1736153056500,14.45154775,213.98,213.91,65.65256278]
[1736153056810,14.45154775,214.0,213.93,14.45154775]
[1736153057016,14.45154775,214.01,213.94,15.15245212]
[1736153057315,14.45154775,214.02,213.95,14.45154775]
[1736153057530,14.45154775,214.01,213.94,65.65245212]
[1736153058115,14.45154775,213.98,213.94,51.20090437]
[1736153058425,14.45154775,213.97,213.9,84.95154775]
[1736153058722,14.45154775,213.93,213.88,50.5]
[1736153058934,14.45154775,213.92,213.86,50.5]
[1736153063296,14.45154775,213.94,213.85,22.48534775]
[1736153064234,14.45154775,213.94,213.87,14.45154775]
[1736153064396,14.45154775,213.98,213.9,14.45154775]
[1736153065521,14.45154775,213.98,213.91,15.15260645]
[1736153065919,2.42,214.01,213.91,65.65260645]
[1736153065920,14.45154775,213.99,213.91,65.65260645]
[1736153066128,14.45154775,213.98,213.91,65.65260645]
[1736153066430,14.45154775,213.97,213.91,50.5]
[1736153067014,14.45154775,213.95,213.91,50.5]
[1736153067409,14.45154775,213.95,213.94,20.0]
[1736153067608,19.45154775,214.06,213.91,14.45154775]
[1736153067609,14.45154775,213.99,213.91,14.45154775]
[1736153067815,14.45154775,213.98,213.9,65.65268973]
[1736153068037,14.45154775,213.97,213.9,65.65268973]
[1736153068743,14.45154775,213.99,213.91,14.45154775]
[1736153069327,14.45154775,213.98,213.9,65.65268973]
[1736153069830,14.45154775,213.98,213.91,14.45154775]
[1736153070713,14.45154775,214.0,213.93,14.45154775]
[1736153071239,14.45154775,214.01,213.93,64.95154775]
[1736153071730,14.45154775,214.02,213.95,14.45154775]
[1736153072533,14.45154775,214.03,213.96,14.45154775]
[1736153072926,14.45154775,214.01,213.95,58.5009]
[1736153074059,14.45154775,214.02,213.95,58.5009]
[1736153074519,14.45154775,214.03,213.96,15.15239175]
[1736153074920,14.45154775,214.04,213.97,14.45154775]
[1736153075233,11.6757,214.12,213.99,64.95154775]
[1736153075234,14.45154775,214.06,213.99,64.95154775]
[1736153075426,14.45154775,214.07,214.0,64.95154775]
[1736153076126,14.45154775,214.09,214.02,14.45154775]
[1736153076314,14.45154775,214.09,214.02,64.95154775]
[1736153077249,14.45154775,214.1,214.03,89.42906074]
[1736153077955,14.45154775,214.11,214.04,14.45154775]
[1736153078610,14.45154775,214.05,214.03,50.5]
[1736153078806,14.45154775,214.04,213.96,50.5]
[1736153079042,14.45154775,214.02,213.96,50.5]
[1736153079243,14.45154775,214.03,213.96,50.5]
[1736153079451,14.45154775,214.03,213.96,64.95154775]
[1736153079611,14.45154775,214.03,213.96,50.5]
[1736153082647,14.45154775,214.03,213.96,64.95154775]
[1736153082942,14.45154775,214.04,213.96,64.95154775]
[1736153084155,14.45154775,214.06,213.98,14.45154775]
[1736153084442,16.85154775,214.07,214.0,14.45154775]
[1736153086528,2.4,214.07,214.01,65.6522879]
[1736153087026,14.45154775,214.1,214.03,64.95154775]
[1736153088134,14.45154775,214.09,214.03,64.95154775]
[1736153088841,14.45154775,214.09,214.03,50.5]
[1736153089142,14.45154775,214.07,214.01,50.5]
[1736153089344,14.45154775,214.06,214.0,14.45154775]
[1736153089526,14.45154775,214.06,213.99,14.45154775]
[1736153089924,14.45154775,214.05,213.98,14.45154775]
[1736153090543,14.45154775,214.05,213.99,23.776884]
[1736153093546,14.45154775,214.05,213.99,74.276884]
[1736153097452,14.45154775,214.04,213.99,74.276884]
[1736153098360,14.45154775,214.05,213.99,74.276884]
[1736153100845,14.45154775,214.06,213.99,88.72843175]
[1736153103373,14.45154775,214.04,213.99,50.5]
[1736153104120,14.45154775,214.08,214.02,23.776884]
[1736153104285,14.45154775,214.1,214.02,14.45154775]
[1736153104444,14.45154775,214.09,214.03,0.70064389]
[1736153104643,2.4,214.12,214.03,0.70064389]
[1736153104644,14.45154775,214.1,214.03,0.70064389]
[1736153104962,14.45154775,214.09,214.03,0.70064389]
[1736153105164,9.22621776,214.09,214.03,0.70064389]
[1736153106170,1.6012,214.15,214.03,9.92686165]
[1736153106369,9.22621776,214.1,214.03,9.92686165]
[1736153107155,14.41541899,214.09,214.03,0.70064389]
[1736153107473,14.41541899,214.08,214.03,51.20064389]
[1736153108004,14.41541899,214.07,214.01,74.276884]
[1736153108889,14.41541899,214.07,214.01,50.5]
[1736153109096,14.41541899,214.04,213.98,50.5]
[1736153109287,14.41541899,214.03,213.98,50.5]
[1736153110178,14.41541899,214.03,213.96,64.91541899]
[1736153110371,14.41541899,214.02,213.96,50.5]
[1736153111199,14.41541899,214.01,213.95,58.5009]
[1736153111503,14.41541899,213.99,213.95,1.524]
[1736153111866,14.41541899,214.0,213.95,1.524]
[1736153115299,14.41541899,213.98,213.91,64.91541899]
[1736153115666,14.41541899,213.97,213.91,50.5]
[1736153117170,14.41541899,213.97,213.9,22.55921899]
[1736153117171,14.41541899,213.95,213.9,1.5817]
[1736153117708,14.41541899,213.94,213.87,50.5]
[1736153121006,14.41541899,213.95,213.88,14.41541899]
[1736153121176,14.41541899,213.94,213.87,14.41541899]
[1736153122313,5.0,214.04,213.9,14.41541899]
[1736153122314,14.41541899,213.98,213.9,14.41541899]
[1736153122689,14.41541899,213.98,213.91,14.41541899]
[1736153122876,14.41541899,213.99,213.92,14.41541899]
[1736153123071,14.41541899,214.0,213.92,14.41541899]
[1736153123308,14.41541899,214.03,213.96,14.41541899]
[1736153123503,10.75266187,214.13,214.0,14.41541899]
[1736153123504,1.6385,214.12,214.0,14.41541899]
[1736153123804,14.41541899,214.08,214.0,14.41541899]
[1736153124111,14.41541899,214.11,214.04,14.41541899]
[1736153126109,14.41541899,214.1,214.03,64.91541899]
[1736153128011,14.41541899,214.09,214.03,50.5]
[1736153128310,14.41541899,214.06,214.0,50.5]
[1736153128490,14.41541899,214.07,214.0,64.91541899]
[1736153128688,14.41541899,214.05,213.99,14.41541899]
[1736153128886,14.41541899,214.06,213.99,14.41541899]
[1736153129513,20.0,214.11,214.0,14.41541899]
[1736153129687,14.41541899,214.08,214.01,14.41541899]
[1736153130015,14.41541899,214.07,214.0,14.41541899]
[1736153134519,14.41541899,214.06,213.99,14.41541899]
[1736153136017,14.41541899,214.06,214.0,0.70075671]
[1736153140330,14.41541899,214.08,214.01,14.41541899]
[1736153140520,14.41541899,214.07,214.0,15.1161757]
[1736153141045,9.22830415,214.07,214.0,9.92906086]
[1736153141242,6.5165,214.15,214.04,9.22830415]
[1736153141546,9.22830415,214.11,214.04,9.22830415]
[1736153142123,1.6385,214.17,214.07,9.22830415]
[1736153142328,9.22830415,214.13,214.07,9.22830415]
[1736153143135,20.0,214.17,214.09,9.22830415]
[1736153143311,9.22830415,214.16,214.09,9.22830415]
[1736153143506,1.6585,214.22,214.09,50.5]
[1736153143826,9.22830415,214.18,214.11,10.75700415]
[1736153144031,9.22830415,214.19,214.12,9.22830415]
[1736153144217,9.22830415,214.18,214.11,10.75700415]
[1736153144721,9.22830415,214.18,214.11,61.25700415]
[1736153145156,14.40440286,214.18,214.11,66.43310286]
[1736153146327,14.40440286,214.2,214.13,14.40440286]
[1736153146648,14.40440286,214.19,214.12,14.40440286]
[1736153147146,14.40440286,214.18,214.11,66.43310286]
[1736153147346,14.40440286,214.17,214.11,1.5287]
[1736153147521,14.40440286,214.15,214.11,1.5287]
[1736153149049,14.40440286,214.16,214.11,1.5287]
[1736153153362,14.40440286,214.15,214.11,1.5287]
[1736153154729,14.40440286,214.15,214.12,23.776884]
[1736153157157,14.40440286,214.13,214.07,50.5]
[1736153157332,14.40440286,214.12,214.06,52.0409]
[1736153158161,14.40440286,214.12,214.07,23.776884]
[1736153160542,14.40440286,214.14,214.07,38.18128686]
[1736153160746,14.40440286,214.14,214.07,38.88181191]
[1736153161763,14.40440286,214.11,214.07,23.776884]
[1736153162267,14.40440286,214.09,214.07,23.776884]
[1736153162738,14.40440286,214.1,214.07,23.776884]
[1736153163565,14.40440286,214.11,214.07,23.776884]
[1736153165059,9.22463592,214.11,214.07,23.776884]
[1736153165545,9.22463592,214.11,214.06,1.5409]
[1736153165546,9.22463592,214.08,214.01,1.6473]
[1736153165755,9.22463592,214.04,214.01,1.6473]
[1736153166335,9.22463592,214.05,214.01,1.6473]
[1736153166552,9.22463592,214.06,214.01,1.6473]
[1736153167363,11.6764,214.11,214.01,1.6473]
[1736153167548,9.22463592,214.06,214.01,1.6473]
[1736153168684,9.22463592,214.05,214.01,1.6473]
[1736153169666,9.22463592,214.04,213.99,6.1984]
[1736153169879,9.22463592,214.03,213.99,6.1984]
[1736153170044,9.22463592,214.02,213.97,50.5]
[1736153170245,9.22463592,214.02,213.98,23.776884]
[1736153170551,1.92544588,214.1,213.96,1.6046]
[1736153170552,9.22463592,213.99,213.96,1.6046]
[1736153170941,9.22463592,213.99,213.97,23.776884]
[1736153171150,9.22463592,214.01,213.97,23.776884]
[1736153171351,9.22463592,214.02,213.97,23.776884]
[1736153171555,9.22463592,214.04,213.97,84.20240478]
[1736153171754,20.0,214.08,213.98,9.22463592]
[1736153172063,20.0,214.08,214.0,23.776884]
[1736153172064,9.22463592,214.06,214.0,23.776884]
[1736153172674,20.0,214.08,214.0,23.776884]
[1736153172974,9.22463592,214.06,214.0,23.776884]
[1736153173935,20.0,214.08,214.0,23.776884]
[1736153173936,9.22463592,214.05,214.0,23.776884]
[1736153175979,9.22463592,214.04,214.0,23.776884]
[1736153176273,9.22463592,214.05,214.0,23.776884]
[1736153177952,9.22463592,214.04,213.99,51.20079419]
[1736153178156,9.22463592,214.01,213.96,1.6046]
[1736153178471,9.22463592,214.0,213.97,23.776884]
[1736153178656,9.22463592,214.01,213.97,23.776884]
[1736153179375,9.22463592,214.02,213.97,23.776884]
[1736153180548,9.22463592,214.01,213.97,23.776884]
[1736153182871,9.22463592,214.0,213.96,1.6046]
[1736153183260,9.22463592,213.99,213.96,1.6046]
[1736153184562,9.22463592,214.0,213.96,1.6046]
[1736153184783,9.22463592,214.01,213.96,1.6046]
[1736153191289,9.22463592,214.0,213.96,1.6046]
[1736153191461,9.22463592,213.98,213.91,52.1529]
[1736153191668,9.22463592,213.95,213.91,52.1529]
[1736153191868,9.22463592,213.95,213.91,1.6529]
[1736153192075,11.6815,214.02,213.91,11.57861149]
[1736153192289,9.22463592,213.99,213.92,9.22463592]
[1736153193080,9.22463592,213.99,213.93,23.776884]
[1736153196384,6.63688738,214.05,213.93,23.776884]
[1736153196585,9.22463592,214.01,213.94,9.22463592]
[1736153196795,9.22463592,214.01,213.93,23.776884]
[1736153196967,9.22463592,214.01,213.94,9.22463592]
[1736153198590,9.22463592,214.02,213.96,23.776884]
[1736153198767,9.22463592,214.01,213.94,9.22463592]
[1736153198978,9.22463592,214.02,213.96,23.776884]
[1736153202195,9.22463592,214.01,213.96,23.776884]
[1736153202662,1.8438168,214.08,213.96,23.776884]
[1736153202992,9.22463592,214.04,213.98,23.776884]
[1736153205499,9.22463592,214.08,214.02,23.776884]
[1736153205793,9.22463592,214.08,214.02,33.70217872]
[1736153206196,9.22463592,214.09,214.02,84.20217872]
[1736153206594,9.22463592,214.08,214.02,74.9775428]
[1736153206786,9.22463592,214.05,214.02,50.5]
[1736153207094,9.22463592,214.03,213.99,1.5937]
[1736153207972,9.22463592,214.03,214.0,23.776884]
[1736153209691,9.22463592,214.05,214.0,23.776884]
[1736153209896,9.22463592,214.07,214.02,23.776884]
[1736153211099,9.22463592,214.07,214.01,23.776884]
[1736153211397,9.22463592,214.05,214.01,23.776884]
[1736153215333,9.22463592,214.06,214.01,23.776884]
[1736153217112,9.22463592,214.07,214.01,24.47759729]
[1736153217628,9.22463592,214.06,214.01,24.47759729]
[1736153219429,9.22463592,214.06,214.01,74.97759729]
[1736153220928,9.22463592,214.07,214.01,74.97759729]
[1736153221310,11.6746,214.14,214.05,33.00151992]
[1736153221516,9.22463592,214.13,214.07,23.776884]
[1736153221725,9.22463592,214.13,214.09,23.776884]
[1736153222323,11.6718,214.19,214.09,23.776884]
[1736153222527,11.6718,214.19,214.11,23.776884]
[1736153222736,9.22463592,214.16,214.11,23.776884]
[1736153223142,9.22463592,214.15,214.11,23.776884]
[1736153223446,9.22463592,214.15,214.09,23.776884]
[1736153223626,11.6718,214.19,214.09,23.776884]
[1736153223627,9.22463592,214.14,214.09,23.776884]
[1736153224146,9.22463592,214.12,214.09,74.276884]
[1736153224624,9.22463592,214.13,214.09,74.276884]
[1736153225727,9.22463592,214.14,214.09,74.276884]
[1736153226342,11.6734,214.17,214.09,74.276884]
[1736153226526,9.22463592,214.14,214.09,74.97735298]
[1736153228351,9.22463592,214.14,214.09,74.276884]
[1736153228647,11.6734,214.17,214.09,74.276884]
[1736153228648,9.22463592,214.13,214.09,74.276884]
[1736153228833,9.22463592,214.1,214.09,74.276884]
[1736153229456,9.22463592,214.11,214.09,74.276884]
[1736153230129,9.22463592,214.12,214.09,74.276884]
[1736153231159,9.22463592,214.11,214.09,74.276884]
[1736153232052,9.22463592,214.12,214.09,74.276884]
[1736153232950,9.22463592,214.11,214.09,74.276884]
[1736153233727,9.22463592,214.12,214.09,74.276884]
[1736153234258,9.22463592,214.11,214.09,74.276884]
[1736153234447,9.22463592,214.11,214.08,23.776884]
[1736153234646,9.22463592,214.1,214.07,50.5]
[1736153234831,9.22463592,214.08,214.01,52.1632]
[1736153235031,9.22463592,214.05,214.01,52.1632]
[1736153235663,9.22463592,214.05,214.02,23.776884]
[1736153236242,9.22463592,214.06,214.02,23.776884]
[1736153238956,9.22463592,214.05,214.02,23.776884]
[1736153239158,9.22463592,214.04,213.95,1.6632]
[1736153239473,9.22463592,214.03,213.96,9.22463592]
[1736153239666,9.22463592,214.02,213.95,52.86399315]
[1736153239973,9.22463592,214.03,213.96,83.50151992]
[1736153240145,9.22463592,214.03,213.96,74.276884]
[1736153240877,9.22463592,214.03,213.98,23.776884]
[1736153241676,9.22463592,214.04,213.98,23.776884]
[1736153241857,9.22463592,214.03,213.98,23.776884]
[1736153242273,9.22463592,214.04,213.98,23.776884]
[1736153242954,9.22463592,214.03,213.98,74.276884]
[1736153243356,9.22463592,214.04,213.98,74.276884]
[1736153245173,9.22463592,214.03,213.98,74.276884]
[1736153246077,9.22463592,214.02,213.95,52.1632]
[1736153246377,9.22463592,214.0,213.96,23.776884]
[1736153247478,9.22463592,214.01,213.96,23.776884]
[1736153247777,9.22463592,214.02,213.96,23.776884]
[1736153248473,9.22463592,214.05,213.98,23.776884]
[1736153248681,9.22463592,214.05,213.98,33.00151992]
[1736153249255,9.22463592,214.04,213.99,23.776884]
[1736153256985,9.22463592,214.06,213.99,33.00151992]
[1736153257182,9.22463592,214.05,213.99,23.776884]
[1736153257403,9.22463592,214.04,213.99,23.776884]
[1736153258391,9.22463592,214.02,213.98,50.5]
[1736153258579,9.22463592,213.99,213.95,52.1632]
[1736153258793,20.0,214.06,213.95,1.6632]
[1736153258979,9.22463592,213.98,213.95,1.6632]
[1736153259322,9.22463592,213.98,213.94,56.9064]
[1736153260288,36.89854368,214.06,213.95,23.776884]
[1736153260289,9.22463592,213.99,213.95,23.776884]
[1736153260589,11.6808,214.03,213.95,23.776884]
[1736153260774,28.3546,214.09,213.97,23.776884]
[1736153260775,9.22463592,214.02,213.97,23.776884]
[1736153261592,9.22463592,213.98,213.95,23.776884]
[1736153261778,9.22463592,213.96,213.9,52.0161]
[1736153261989,9.22463592,213.95,213.9,52.0161]
[1736153262771,9.22463592,213.95,213.91,23.776884]
[1736153262967,9.22463592,213.93,213.88,56.745]
[1736153263172,9.22463592,213.92,213.88,56.745]
[1736153263479,9.22463592,213.91,213.88,56.745]
[1736153263773,9.22463592,213.91,213.85,52.091]
[1736153264190,9.22463592,213.91,213.86,23.776884]
[1736153264381,9.22463592,213.92,213.86,74.276884]
[1736153264579,9.22463592,213.93,213.86,83.50151992]
[1736153265306,9.22463592,213.91,213.86,74.276884]
[1736153265619,9.22463592,213.92,213.86,74.276884]
[1736153268697,9.22463592,213.92,213.86,83.50151992]
[1736153269011,9.22463592,213.93,213.86,83.50151992]
[1736153269522,9.22463592,213.93,213.88,23.776884]
[1736153269726,9.22463592,213.94,213.88,23.776884]
[1736153270622,9.22463592,213.93,213.88,23.776884]
[1736153272338,11.6821,214.01,213.91,9.22463592]
[1736153272632,11.6821,214.01,213.94,33.00151992]
[1736153272835,11.6821,214.01,213.95,9.92556645]
[1736153273631,11.68,214.04,213.96,33.00151992]
[1736153273802,9.22463592,214.03,213.97,9.22463592]
[1736153274922,8.0424,214.1,213.96,24.47774863]
[1736153274923,9.22463592,214.02,213.96,33.70238455]
[1736153276241,20.0,214.04,213.93,52.1111]
[1736153276242,9.22463592,214.0,213.93,52.1111]
[1736153276405,9.22463592,214.0,213.93,61.33573592]
[1736153276605,9.22463592,214.01,213.95,23.776884]
[1736153278022,9.22463592,214.0,213.95,23.776884]
[1736153282737,20.90793592,213.98,213.93,52.1111]
[1736153282938,20.90793592,213.98,213.91,6.0502]
[1736153282939,9.22463592,213.97,213.91,56.5502]
[1736153283141,9.22463592,213.97,213.92,23.776884]